Cogmind - Beta 13 @@@ ROGUE MODE // 2024.05.03 @ 17:59:21 Player: sercli123 Result: Self-destructed Performance ------------- Evolutions (1) 500 Regions Visited (3) 600 Robots Destroyed (56) 280 Value Destroyed (1491) 1491 Prototype IDs (3) 60 Alien Tech Used (0) 0 Bonus (135) 135 TOTAL SCORE: 3066 Bonus ------- High Alert Combat Kills 135 Cogmind --------- Core Integrity 218/400 Matter 295/300 Energy 325/325 System Corruption 16% Temperature Cool (0) Movement Rolling (140) Ox4 Location -9/Storage Parts ------- > --- POWER (1) -------- Light Ion Engine > --- PROPULSION (2) --- Wheel Wheel > --- UTILITY (4) ------ Cooling System Huge Storage Unit Compact Battery > --- WEAPON (2) ------- Datajack > --- INVENTORY (25) --- Light Ion Engine Improved Ion Engine Aluminum Leg Aluminum Leg Thermal Generator Thermal Generator Improved Heat Sink Compact Battery (200) Improved Targeting Computer Utility Shielding Light Armor Plating Light Armor Plating Hardened Light Armor Plating Reflective Plating Reflective Plating Peak State ------------ > --- POWER ------------ Light Ion Engine > --- PROPULSION ------- Aluminum Leg Compact Wheel > --- UTILITY ---------- Cooling System Huge Storage Unit Compact Battery Reflective Plating > --- WEAPON ----------- Heavy EM Pulse Gun Improved EM Shotgun > --- INVENTORY -------- Improved Ion Engine Aluminum Leg Thermal Generator Thermal Generator Improved Heat Sink Compact Battery Improved Targeting Computer Utility Shielding Light Armor Plating Light Armor Plating Hardened Light Armor Plating Reflective Plating Reflective Plating Particle Gun Rocket Launcher Datajack [Rating: 20] Favorites ----------- Power Ion Engine Engine Ion Engine Propulsion Aluminum Leg Leg Aluminum Leg Wheel Compact Wheel Utility Huge Storage Unit Device Cooling System Storage Huge Storage Unit Protection Reflective Plating Weapon Particle Gun Energy Gun Particle Gun Ballistic Gun Light Assault Rifle Launcher EMP Blaster Special Melee Weapon Datajack Build | -11 -10 -9 -9 ------- Run | Yrd Mat Mat Sto Slots Evolved 2 | . . 2 . Power . | . . . . Propulsion . | . . . . Utility 2 | . . 2 . Weapon . | . . . . Parts Attached 40 | 6 5 14 15 Power 6 | 1 2 1 2 Engine 6 | 1 2 1 2 Core . | . . . . Reactor . | . . . . Propulsion 12 | 2 2 3 5 Treads . | . . . . Leg 6 | 2 2 . 2 Wheel 6 | . . 3 3 Hover . | . . . . Flight . | . . . . Utility 9 | 1 . 7 1 Device 2 | . . 2 . Storage 3 | 1 . 2 . Processor . | . . . . Hackware . | . . . . Protection 4 | . . 3 1 Artifact . | . . . . Weapon 13 | 2 1 3 7 Energy Gun 6 | . 1 1 4 Energy Cannon . | . . . . Ballistic Gun 2 | 2 . . . Ballistic Cannon . | . . . . Launcher 4 | . . 2 2 Special Weapon . | . . . . Impact Weapon . | . . . . Slashing Weapon . | . . . . Piercing Weapon . | . . . . Special Melee Weapon 1 | . . . 1 Unidentified Prototypes 1 | . . 1 . Corrupted Parts 3 | . . 1 2 System Corruption 14 | . . 3 11 Parts Lost 13 | . . 5 8 Power 2 | . . 1 1 Propulsion 2 | . . 1 1 Utility 4 | . . 3 1 Weapon 5 | . . . 5 Highest Loss Streak 3 | . . 2 3 To Critical Strikes . | . . . . Average Slot Usage (%) 86 | . 85 85 90 Engine 11 | . 14 10 10 Leg 11 | . 28 . . Wheel 10 | . . 16 16 Device 6 | . . 9 11 Storage 15 | . 14 13 22 Protection 7 | . . 12 11 Energy Gun 10 | . 8 11 12 Ballistic Gun 7 | . 19 . . Launcher 4 | . . 9 5 Naked Turns . | . . . . Heaviest Build 101 | 12 14 101 98 Greatest Support 38 | 20 20 38 26 Greatest Overweight (x) 6 | . . 6 6 Average Overweight (x) 1 | . . 3 3 Largest Inventory Capacity 25 | 8 8 25 25 Average Capacity 17 | 7 8 24 25 Most Carried 19 | 3 8 18 19 Average Carried 11 | 1 6 14 15 Final Capacity 25 | 8 8 25 25 Final Carried 16 | 3 8 16 15 Class Distribution -------------------- 100% | Mutant Dominant Class ---------------- Mutant | -10/Materials Mutant | -9/Materials Mutant | -9/Storage Resources | -11 -10 -9 -9 ----------- Run | Yrd Mat Mat Sto Matter Collected 818 | 227 142 273 176 Remotely . | . . . . Salvage Created 1765 | . 333 764 668 Parts 123 | . 27 51 45 Haulers Intercepted 1 | . 1 . . Recyclers Shooed 2 | . 2 . . Parts Field Recycled . | . . . . Retrieved Matter . | . . . . Parts Self-Destructed . | . . . . Prevented . | . . . . Kills | -11 -10 -9 -9 ------- Run | Yrd Mat Mat Sto Combat Hostiles Destroyed 44 | . 8 20 16 Guns 15 | . 8 1 6 AOE 28 | . . 19 9 Classes Destroyed 8 | . 4 4 . Worker 2 | . . 2 . Builder 7 | . . 7 . Hauler 1 | . 1 . . Watcher 2 | . 1 . 1 Swarmer 10 | . 3 4 3 Grunt 27 | . 5 13 9 Duelist 1 | . . 1 . Sentry 6 | . . 2 4 Best Kill Streak 10 | . 3 10 8 Combat Bots Only 9 | . 3 9 7 Max Kills in Single Turn 5 | . 1 3 5 Gunslinging . | . . . . Exploded 5 | . . 3 5 Melee . | . . . . Uniques/NPCs Destroyed . | . . . . Combat | -11 -10 -9 -9 -------- Run | Yrd Mat Mat Sto Hostile Shots Fired 177 | . 43 59 75 Missed 62 | . 14 21 27 Damage Taken 1650 | . 337 641 672 Core 242 | . 60 78 104 Absorbed by Shields . | . . . . Ignored by Resistances 74 | . . 12 62 Core Remaining (%) 88 | 100 76 . . Volleys Fired 105 | . 41 39 25 Largest 2 | . 2 2 2 Hottest 110 | . 85 98 110 Shots Fired 190 | . 82 65 43 Gun 152 | . 82 37 33 Cannon . | . . . . Launcher 38 | . . 28 10 Special . | . . . . Kinetic 64 | . 64 . . Thermal 58 | . 18 37 3 Explosive 9 | . . 8 1 Electromagnetic 59 | . . 20 39 Robot Hit Streak 9 | . 9 7 9 Robot Miss Streak 6 | . 4 6 2 Penetration Max . | . . . . Secondary Targets . | . . . . Shots Hit Robots 124 | . 46 39 39 Core Hits 91 | . 23 41 27 Critical Kills . | . . . . Critical Parts Destroyed . | . . . . Critical Strikes 2 | . . 1 1 Burn 1 | . . 1 . Corrupt 1 | . . . 1 Melee Attacks 4 | . . . 4 Impact . | . . . . Slashing . | . . . . Piercing . | . . . . Sneak Attacks . | . . . . Combat Hostiles . | . . . . Follow-up Attacks . | . . . . Damage Inflicted 3448 | . 469 1961 1018 Guns 1165 | . 465 298 402 Cannons . | . . . . Explosions 2275 | . . 1659 616 Melee . | . . . . Ramming 8 | . 4 4 . Kinetic 324 | . 324 . . Thermal 746 | . 141 479 126 Explosive 1090 | . . 775 315 Electromagnetic 1280 | . . 703 577 Impact . | . . . . Slashing . | . . . . Piercing . | . . . . Highest Corruption 16 | . . 4 16 Average Corruption 6 | . . 2 8 Corruption Purged . | . . . . Corruption Blocked . | . . . . Effects 19 | . . 7 12 Message Errors 10 | . . 2 8 Matter Fused 2 | . . . 2 Heat Flow Errors 2 | . . 1 1 Energy Discharges 2 | . . 2 . Parts Rejected 1 | . . . 1 Data Loss (minor) 1 | . . 1 . Data Loss (major) 1 | . . 1 . Overload Shots . | . . . . Overflow Damage 88 | . . 61 27 Projectiles . | . . . . Explosions 88 | . . 61 27 Melee . | . . . . Knockbacks . | . . . . Impact . | . . . . Kinetic . | . . . . Secondary . | . . . . Self-Inflicted Damage 171 | . . 118 53 Shots 9 | . . 6 3 Rammed 1 | . . 1 . Targets Rammed 2 | . 1 1 . Kicked 1 | . 1 . . Crushed . | . . . . Highest Temperature 260 | . 170 260 256 Average Temperature 76 | . 54 119 115 Received Heat Transfer 567 | . 177 147 243 Effects 2 | . . 2 . Interference 2 | . . 2 . Siege Activations . | . . . . Robots Corrupted 1 | . . . 1 Combat Hostiles 1 | . . . 1 Parts Fried 4 | . . 1 3 Impact Corruptions . | . . . . Robots Melted . | . . . . Combat Hostiles . | . . . . Parts Melted . | . . . . Heat Transferred 1671 | . 333 1127 211 Parts Sabotaged . | . . . . Parts Stolen . | . . . . Parts Stripped . | . . . . Power Chain Reactions 15 | . . 10 5 Alert | -11 -10 -9 -9 ------- Run | Yrd Mat Mat Sto Peak Influence 748 | . 219 510 748 Initial 215 | . . 53 215 Average 197 | . 68 229 402 Maximum Alert Level 3 | . 1 2 3 Low Security (%) 55 | 100 90 47 . Level 1 31 | . 9 41 55 Level 2 11 | . . 10 36 Level 3 1 | . . . 8 Level 4 . | . . . . Level 5 . | . . . . High Security . | . . . . Max Security . | . . . . Squads Dispatched 8 | . 1 4 3 Investigation 2 | . 1 1 . Extermination . | . . . . Reinforcement 5 | . . 3 2 Assault . | . . . . Garrison 1 | . . . 1 Intercept . | . . . . Searches Triggered . | . . . . Construction Impeded 4 | . . 3 1 Haulers Reinforced . | . . . . Active Scanning Responses . | . . . . Cargo Convoy Interrupts . | . . . . Stealth | -11 -10 -9 -9 --------- Run | Yrd Mat Mat Sto Distress Signals 4 | . 3 . 1 Communications Jammed . | . . . . Distress Signals . | . . . . Times Spotted 57 | . 17 19 21 Peak Tracking Total 8 | . 5 8 8 Tactical Retreats 4 | . 3 . 1 Traps | -11 -10 -9 -9 ------- Run | Yrd Mat Mat Sto Traps Triggered 2 | . 1 . 1 Indirectly . | . . . . Trap Hack Attempts . | . . . . Triggered . | . . . . Disarmed . | . . . . Reprogrammed . | . . . . Reused . | . . . . Traps Extracted . | . . . . Installed . | . . . . Triggered . | . . . . Machines | -11 -10 -9 -9 ---------- Run | Yrd Mat Mat Sto Machines Disabled 2 | . . 1 1 Max in Single Turn 1 | . . 1 1 Machines Repaired . | . . . . Machines Dismantled . | . . . . Machines Sabotaged . | . . . . Overloaded Fab Kills . | . . . . Hacking | -11 -10 -9 -9 --------- Run | Yrd Mat Mat Sto Machines Accessed 7 | . 4 3 . Terminals 6 | . 4 2 . Fabricators . | . . . . Repair Stations . | . . . . Recycling Units . | . . . . Scanalyzers 1 | . . 1 . Garrison Access . | . . . . Total Hacks 34 | . 14 20 . Successful 25 | . 9 16 . Failed 9 | . 5 4 . Catastrophic 1 | . 1 . . Database Lockouts . | . . . . Manual 7 | . 6 1 . Terminals 21 | . 14 7 . Fabricators . | . . . . Repair Stations . | . . . . Recycling Units . | . . . . Scanalyzers 13 | . . 13 . Garrison Access . | . . . . Terminal Hacks 14 | . 9 5 . Record 2 | . . 2 . Prototype ID Bank 1 | . 1 . . Branch Access Points 3 | . 2 1 . Emergency Access Points 1 | . 1 . . Alert Level 1 | . 1 . . Locate Traps 3 | . 2 1 . Hauler Manifests 1 | . 1 . . Zone Layout 2 | . 1 1 . Fabricator Hacks . | . . . . Repair Station Hacks . | . . . . Recycling Unit Hacks . | . . . . Scanalyzer 11 | . . 11 . Insert Component 6 | . . 6 . Analyze 5 | . . 5 . Garrison Access Hacks . | . . . . Unauthorized Hacks . | . . . . Terminals . | . . . . Fabricators . | . . . . Repair Stations . | . . . . Recycling Units . | . . . . Scanalyzers . | . . . . Garrison Access . | . . . . Data Cores Recovered . | . . . . Used . | . . . . Hacking Detections 6 | . 3 3 . Full Trace Events 4 | . 2 2 . Feedback Events . | . . . . Feedback Blocked . | . . . . Robot Schematics Acquired . | . . . . Robots Built . | . . . . Authchips . | . . . . Time . | . . . . Total Robot Build Rating . | . . . . Part Schematics Acquired 4 | . . 4 . Parts Built . | . . . . Authchips . | . . . . Time . | . . . . Total Part Build Rating . | . . . . Parts Repaired . | . . . . Time . | . . . . Parts Recycled . | . . . . Recycled Matter . | . . . . Retrieved Matter . | . . . . Retrieved Components . | . . . . Parts Scanalyzed 5 | . . 5 . Part Schematics Acquired 4 | . . 4 . Parts Damaged . | . . . . Bothacking | -11 -10 -9 -9 ------------ Run | Yrd Mat Mat Sto Used RIF Installer . | . . . . Robots Hacked 1 | . . . 1 Non-combat . | . . . . Combat 1 | . . . 1 Robot Hacks Applied 2 | . . . 2 parse_system 2 | . . . 2 Relay Couplers Released . | . . . . Fabnet Peak Effective % . | . . . . Robots Rewired . | . . . . Allies Hacked . | . . . . Hacks Repelled . | . . . . Allies | -11 -10 -9 -9 -------- Run | Yrd Mat Mat Sto Total Allies . | . . . . Largest Group . | . . . . Highest-Rated Group . | . . . . Highest-Rated Ally . | . . . . Total Orders . | . . . . Ally Attacks . | . . . . Total Damage . | . . . . Kills . | . . . . Allies Corrupted . | . . . . Allies Melted . | . . . . Intel | -11 -10 -9 -9 ------- Run | Yrd Mat Mat Sto Robot Analysis Total . | . . . . Derelict Logs Recovered . | . . . . Drone Launches . | . . . . Drone Recoveries . | . . . . Exploration | -11 -10 -9 -9 ------------- Run | Yrd Mat Mat Sto Turns Passed 2035 | 72 764 772 427 Spaces Moved 937 | 51 414 291 181 Core 5 | 5 . . . Treads . | . . . . Legs 477 | 46 414 17 . Wheels 455 | . . 274 181 Hover . | . . . . Flight . | . . . . Fastest Speed 50 | 50 120 120 135 Average Speed 137 | 113 120 160 147 Slowest Speed 190 | 120 120 190 190 Overloaded Moves . | . . . . Propulsion Burnouts . | . . . . Robots Hopped . | . . . . Cave-ins Triggered . | . . . . Exploration Rate (%) 32 | 3 57 26 44 Regions Visited 3 Branch Regions 1 Pre-discovered Areas . | . . . . Known Exits Taken 1 | . . 1 . Unknown Exits Taken 2 | 1 1 . . Scrap Searched . | . . . . Spaces Dug . | . . . . Terrain Destroyed 156 | . . 107 49 Melee . | . . . . Projectile . | . . . . AOE 156 | . . 107 49 Terrain Rammed . | . . . . Walls Destroyed . | . . . . Machines Disabled . | . . . . Actions | -11 -10 -9 -9 --------- Run | Yrd Mat Mat Sto Total 1501 | 65 613 530 293 Wait 360 | . 137 163 60 Move 934 | 50 413 290 181 Hop . | . . . . Pick Up 44 | 9 10 18 7 Fast Attach 1 | . . 1 . Attach 25 | 6 . 10 9 Detach 2 | . . 1 1 Swap 14 | . 5 3 6 Drop 10 | . 6 4 . Fire 105 | . 41 39 25 Melee 4 | . . . 4 Ram 1 | . . 1 . Kick 1 | . 1 . . Crush . | . . . . Escape Stasis . | . . . . Rewire . | . . . . Trap . | . . . . Miscellaneous . | . . . . Route ------- -11/Scrapyard -10/Materials (discovered 2 exits: *Mat / Min) -9/Materials (discovered 4 exits: [*Mat] / Min / *Sto x2) -9/Storage History --------- Turn | Location | Event 22 | -11/Scrapyard | Discovered new exit (range 15) 73 | -11/Scrapyard | Entered Materials 129 | -10/Materials | Identified exit to Mines 302 | -10/Materials | Build established: Mutant 508 | -10/Materials | Discovered new exit (range 12) 837 | -10/Materials | Entered another Materials area 837 | -9/Materials | Evolved 2 slots: Utility x2 927 | -9/Materials | Identified exit to Mines 927 | -9/Materials | Identified exit to Storage 1162 | -9/Materials | Destroyed 9 combat bots 1383 | -9/Materials | Discovered new exit (range 14) 1609 | -9/Materials | Entered Storage 1872 | -9/Storage | System corruption reached 10% 1916 | -9/Storage | Garrison activated, responded to threat 1964 | -9/Storage | Destroyed 7 combat bots 2029 | -9/Storage | Lost 3 parts (3w) 2036 | -9/Storage | Self-destructed Last Messages --------------- 01989_ Imp. EM Shotgun destroyed. 01990_ K-01 Serf collects debris. 01992_ G-34 Mercenary destroyed. 01995_ Hvy. EM Pulse Gun destroyed. 01995_ G-34 Mercenary destroyed. 01998_ Particle Gun destroyed. 02003_ Acquired 26 matter. 02007_ DSYCCZ#NY:MPXDP:ZS4CI:=IP0YY PX EBN& 8= 02020_ Connecting with Door Terminal... 02030_ Jacked Y-45 Defender... >>parse_system Reading system data... 02032_ Reflective Plating destroyed. 02032_ Jacked Y-45 Defender... >>parse_system Reading system data... 02033_ Jacked Y-45 Defender... 02033_ Command string: Find-shortcuts 02033_ No effect. 02035_ Jacked Y-45 Defender... Map ----- +----------------------------------------------------+ | ???????????????# #??????????????????? | | ???????????????# #??????????????????? | | ???????????????#""" #???????????#####??? | | ???????????????#""" #???????????#"""#??? | | ???????????????#""" ######??????#"R"#??? | | ???????????????#""" #"""T#####?##" "#### | | ???????????????#""" "! #?# | | ?????????????### " = #?# | | ???????????### ###"= ### | | ???????? [%* ^ = # """"" | | ???????? *=%[*!^ !! / """"" | | ???????? [% =%[!%= !=%! # """"" | | ?????????####/ ####+####=%###+##### | | ??????????? ## ##!*# # | | ??????????"""???# ## #[% ########## | | ????????????????# ?# # [ ??????? | | ????????????????# ?# # ?????? | | ????????????????? ??# # #???? | | ????????????????? ??# # +???? | | ?????????????????? ???#= # #???? | | ?????????????????? ??##%!## """ ## ###???? | | ??????????????????#+#### = # "R #?##?????? | | ?????????# ######## # """ #????????? | | ??? T # ??? #????????? | | ??????????########Y#####=%[ ##????#????????? | | ????????????????#T @ #?## ##??????????????? | | ????????????????##" "#??# #???????????????# | | ?????????????????#!!!#??# #???????????????# | | ?????????????????#!!!#??# #???????????????# | | ?????????????????#####??? #???????????????# | | ????????????????????????? #???????????????# | | ????????????????????????? #???????????????# | | ????????????????????????? #???????????????# | | ????????????????????????? #???????????????# | | ????????????????????????? #???????????????? | | ????????????????????????? #???????????????? | | ?????????????????????????? ????????????????? | | ???????????????????????????????????????????? | | ???????????????????????????????????????????? | | ???????????????????????????????????????????? | | ???????????????????????????????????????????? | | ???????????????????????????????????????????? | | ???????????????????????????????????????????? | | ???????????????????????????????????????????? | | ???????????????????????????????????????????? | | ???????????????????????????????????????????? | | ???????????????????????????????????????????? | | ???????????????????????????????????????????? | | ???????????????????????????????????????????? | | ???????????????????????????????????????????? | +----------------------------------------------------+ Best States ------------- Heat Dissipation 50 Energy Generation 10 Energy Capacity 325 Matter Stores 300 Matter Capacity 300 Sight Range 16 Terrain Scan Density 10 Additional Mass Support 6 Armor Coverage 300 Resistance: TH 10 Evasion (%) 55 Item Schematics ----------------- Rocket Launcher | -9/Materials | Scanalyzed Hrd. Light Armor Plating | -9/Materials | Scanalyzed EMP Blaster | -9/Materials | Scanalyzed Reflective Plating | -9/Materials | Scanalyzed Robot Schematics ------------------ None Fabricated ------------ Nothing Alien Tech Used ----------------- None Achievements -------------- Let's See Who's Tougher Power Corrupts Quick And Dirty Challenges ------------ None Game ------ Seed TractorPhysicsGreatsword Manual? 0 Play Time 00:42:04 Cumulative 8.1 hours Start 2024.05.03 @ 16:54:35 End 2024.05.03 @ 17:59:21 Sessions 1 Manual Loads 0 Difficulty Rogue Special Mode None Game No. 6 Rogue 6 Adventurer 0 Explorer 0 Win Type - Total 0 Types 0/0/0/0/0/0/0/0/0 Lore% 2 Gallery% 9 Achievement% 10 Wizard Run 0 Options --------- Layout 0 ASCII 0 Keyboard 0 Movement Mouse Keybinds 0 Fullscreen 1 Font 18/SmallcapsGlow Map View 38x25 Zoom Use 95% Tactical HUD 1 Map Filters NONE Filters NONE Steam 0 RUN: 6888321d-dd5e-4bf5-8655-77316cda7f88